{"text_format":"1","workbook":"xlsx","n_sheets":3,"sheets":["INPUT","TRANSPOSE","DATANILAI"],"not_rendered":{"charts":0,"images":0,"macros":1,"external_links":0,"defined_names":4,"comments":0,"pivot_tables":0},"unopened":[],"bounds":{"document_bytes":16777216,"sheet_cells":100000,"rows_first":2000,"rows_last":500,"rows_between":2000,"halvings":0,"cell_chars":16384,"cell_head_chars":4096},"cells_cut":0,"cells_raw":0,"read":"whole","date_system":"1900"}

{"sheet":"INPUT","index":0,"n_rows":14,"n_cols":13,"rows_kept":14,"cut":false,"hidden":false,"merged":[]}
[]
[]
[]
[]
[null,"TGL","MGG","BLN","KLP"]
[null,"2-2-2019",1,1,"ANGGUR"]
[]
["INDIKATOR PENILAIAN","1-HASAN","2-NURI","3-RIKO","4-ZAINI","5-YUNUS","6-RINI","7-DITA","8-ROMLA","9-NINA","10-ZAID","11-NITA","12-BUDI"]
["NAM|3.1.=3.1.1. Mengucapkan doa-doa pendek, melakukan ibadah sesuai dengan agamanya (misal: doa sebelum memulai dan selesai kegiatan)",1,3,2,4,2,4,1,3,2,4,2,3]
["FISIK|3.3.=3.3.1. Melakukan berbagai gerakan terkoordinasi secara terkontrol, seimbang, dan lincah",4,2,4,3,4,1,3,4,1,2,1,4]
["KOG|3.5.=3.5.1. Mampu memecahkan sendiri masalah sederhana yang dihadapi",3,4,1,2,1,3,2,4,3,4,1,3]
["KOG|3.5.=3.5.2. Menyelesaikan tugas meskipun menghadapi kesulitan",2,1,3,2,1,3,4,1,2,1,3,1]
["BHS|3.10.=3.10.1. Menceritakan kembali apa yang didengar dengan kosakata yang lebih",3,3,4,2,3,4,1,3,2,1,3,2]
["FISIK|4.4.=4.4.2. Mampu melindungi diri dari percobaan kekerasan, termasuk kekerasan seksual dan bullying (misal dengan berteriak dan/atau berlari)",3,4,1,3,4,1,3,4,2,3,4,2]

{"sheet":"TRANSPOSE","index":1,"n_rows":73,"n_cols":5,"rows_kept":73,"cut":false,"hidden":false,"merged":[]}
[null,null,"INDIKATOR","NAMA","NILAI"]
[null,null,{"$f":"INDEX(INDIKATOR,TRUNC((ROW(C1)-1)/12)+1)","v":"NAM|3.1.=3.1.1. Mengucapkan doa-doa pendek, melakukan ibadah sesuai dengan agamanya (misal: doa sebelum memulai dan selesai kegiatan)"},{"$f":"INDEX(NAMA,MOD(ROW(C1)-1,12)+1)","v":"1-HASAN"},{"$f":"INDEX(NILAI,TRUNC((ROW(C1)-1)/12)+1,MATCH(D2,NAMA,0))","v":1}]
[null,null,"NAM|3.1.=3.1.1. Mengucapkan doa-doa pendek, melakukan ibadah sesuai dengan agamanya (misal: doa sebelum memulai dan selesai kegiatan)","2-NURI",3]
[null,null,"NAM|3.1.=3.1.1. Mengucapkan doa-doa pendek, melakukan ibadah sesuai dengan agamanya (misal: doa sebelum memulai dan selesai kegiatan)","3-RIKO",2]
[null,null,"NAM|3.1.=3.1.1. Mengucapkan doa-doa pendek, melakukan ibadah sesuai dengan agamanya (misal: doa sebelum memulai dan selesai kegiatan)","4-ZAINI",4]
[null,null,"NAM|3.1.=3.1.1. Mengucapkan doa-doa pendek, melakukan ibadah sesuai dengan agamanya (misal: doa sebelum memulai dan selesai kegiatan)","5-YUNUS",2]
[null,null,"NAM|3.1.=3.1.1. Mengucapkan doa-doa pendek, melakukan ibadah sesuai dengan agamanya (misal: doa sebelum memulai dan selesai kegiatan)","6-RINI",4]
[null,null,"NAM|3.1.=3.1.1. Mengucapkan doa-doa pendek, melakukan ibadah sesuai dengan agamanya (misal: doa sebelum memulai dan selesai kegiatan)","7-DITA",1]
[null,null,"NAM|3.1.=3.1.1. Mengucapkan doa-doa pendek, melakukan ibadah sesuai dengan agamanya (misal: doa sebelum memulai dan selesai kegiatan)","8-ROMLA",3]
[null,null,"NAM|3.1.=3.1.1. Mengucapkan doa-doa pendek, melakukan ibadah sesuai dengan agamanya (misal: doa sebelum memulai dan selesai kegiatan)","9-NINA",2]
[null,null,"NAM|3.1.=3.1.1. Mengucapkan doa-doa pendek, melakukan ibadah sesuai dengan agamanya (misal: doa sebelum memulai dan selesai kegiatan)","10-ZAID",4]
[null,null,"NAM|3.1.=3.1.1. Mengucapkan doa-doa pendek, melakukan ibadah sesuai dengan agamanya (misal: doa sebelum memulai dan selesai kegiatan)","11-NITA",2]
[null,null,"NAM|3.1.=3.1.1. Mengucapkan doa-doa pendek, melakukan ibadah sesuai dengan agamanya (misal: doa sebelum memulai dan selesai kegiatan)","12-BUDI",3]
[null,null,"FISIK|3.3.=3.3.1. Melakukan berbagai gerakan terkoordinasi secara terkontrol, seimbang, dan lincah","1-HASAN",4]
[null,null,"FISIK|3.3.=3.3.1. Melakukan berbagai gerakan terkoordinasi secara terkontrol, seimbang, dan lincah","2-NURI",2]
[null,null,"FISIK|3.3.=3.3.1. Melakukan berbagai gerakan terkoordinasi secara terkontrol, seimbang, dan lincah","3-RIKO",4]
[null,null,"FISIK|3.3.=3.3.1. Melakukan berbagai gerakan terkoordinasi secara terkontrol, seimbang, dan lincah","4-ZAINI",3]
[null,null,"FISIK|3.3.=3.3.1. Melakukan berbagai gerakan terkoordinasi secara terkontrol, seimbang, dan lincah","5-YUNUS",4]
[null,null,"FISIK|3.3.=3.3.1. Melakukan berbagai gerakan terkoordinasi secara terkontrol, seimbang, dan lincah","6-RINI",1]
[null,null,"FISIK|3.3.=3.3.1. Melakukan berbagai gerakan terkoordinasi secara terkontrol, seimbang, dan lincah","7-DITA",3]
[null,null,"FISIK|3.3.=3.3.1. Melakukan berbagai gerakan terkoordinasi secara terkontrol, seimbang, dan lincah","8-ROMLA",4]
[null,null,"FISIK|3.3.=3.3.1. Melakukan berbagai gerakan terkoordinasi secara terkontrol, seimbang, dan lincah","9-NINA",1]
[null,null,"FISIK|3.3.=3.3.1. Melakukan berbagai gerakan terkoordinasi secara terkontrol, seimbang, dan lincah","10-ZAID",2]
[null,null,"FISIK|3.3.=3.3.1. Melakukan berbagai gerakan terkoordinasi secara terkontrol, seimbang, dan lincah","11-NITA",1]
[null,null,"FISIK|3.3.=3.3.1. Melakukan berbagai gerakan terkoordinasi secara terkontrol, seimbang, dan lincah","12-BUDI",4]
[null,null,"KOG|3.5.=3.5.1. Mampu memecahkan sendiri masalah sederhana yang dihadapi","1-HASAN",3]
[null,null,"KOG|3.5.=3.5.1. Mampu memecahkan sendiri masalah sederhana yang dihadapi","2-NURI",4]
[null,null,"KOG|3.5.=3.5.1. Mampu memecahkan sendiri masalah sederhana yang dihadapi","3-RIKO",1]
[null,null,"KOG|3.5.=3.5.1. Mampu memecahkan sendiri masalah sederhana yang dihadapi","4-ZAINI",2]
[null,null,"KOG|3.5.=3.5.1. Mampu memecahkan sendiri masalah sederhana yang dihadapi","5-YUNUS",1]
[null,null,"KOG|3.5.=3.5.1. Mampu memecahkan sendiri masalah sederhana yang dihadapi","6-RINI",3]
[null,null,"KOG|3.5.=3.5.1. Mampu memecahkan sendiri masalah sederhana yang dihadapi","7-DITA",2]
[null,null,"KOG|3.5.=3.5.1. Mampu memecahkan sendiri masalah sederhana yang dihadapi","8-ROMLA",4]
[null,null,{"$f":"INDEX(INDIKATOR,TRUNC((ROW(C33)-1)/12)+1)","v":"KOG|3.5.=3.5.1. Mampu memecahkan sendiri masalah sederhana yang dihadapi"},{"$f":"INDEX(NAMA,MOD(ROW(C33)-1,12)+1)","v":"9-NINA"},{"$f":"INDEX(NILAI,TRUNC((ROW(C33)-1)/12)+1,MATCH(D34,NAMA,0))","v":3}]
[null,null,"KOG|3.5.=3.5.1. Mampu memecahkan sendiri masalah sederhana yang dihadapi","10-ZAID",4]
[null,null,"KOG|3.5.=3.5.1. Mampu memecahkan sendiri masalah sederhana yang dihadapi","11-NITA",1]
[null,null,"KOG|3.5.=3.5.1. Mampu memecahkan sendiri masalah sederhana yang dihadapi","12-BUDI",3]
[null,null,"KOG|3.5.=3.5.2. Menyelesaikan tugas meskipun menghadapi kesulitan","1-HASAN",2]
[null,null,"KOG|3.5.=3.5.2. Menyelesaikan tugas meskipun menghadapi kesulitan","2-NURI",1]
[null,null,"KOG|3.5.=3.5.2. Menyelesaikan tugas meskipun menghadapi kesulitan","3-RIKO",3]
[null,null,"KOG|3.5.=3.5.2. Menyelesaikan tugas meskipun menghadapi kesulitan","4-ZAINI",2]
[null,null,"KOG|3.5.=3.5.2. Menyelesaikan tugas meskipun menghadapi kesulitan","5-YUNUS",1]
[null,null,"KOG|3.5.=3.5.2. Menyelesaikan tugas meskipun menghadapi kesulitan","6-RINI",3]
[null,null,"KOG|3.5.=3.5.2. Menyelesaikan tugas meskipun menghadapi kesulitan","7-DITA",4]
[null,null,"KOG|3.5.=3.5.2. Menyelesaikan tugas meskipun menghadapi kesulitan","8-ROMLA",1]
[null,null,"KOG|3.5.=3.5.2. Menyelesaikan tugas meskipun menghadapi kesulitan","9-NINA",2]
[null,null,"KOG|3.5.=3.5.2. Menyelesaikan tugas meskipun menghadapi kesulitan","10-ZAID",1]
[null,null,"KOG|3.5.=3.5.2. Menyelesaikan tugas meskipun menghadapi kesulitan","11-NITA",3]
[null,null,"KOG|3.5.=3.5.2. Menyelesaikan tugas meskipun menghadapi kesulitan","12-BUDI",1]
[null,null,"BHS|3.10.=3.10.1. Menceritakan kembali apa yang didengar dengan kosakata yang lebih","1-HASAN",3]
[null,null,"BHS|3.10.=3.10.1. Menceritakan kembali apa yang didengar dengan kosakata yang lebih","2-NURI",3]
[null,null,"BHS|3.10.=3.10.1. Menceritakan kembali apa yang didengar dengan kosakata yang lebih","3-RIKO",4]
[null,null,"BHS|3.10.=3.10.1. Menceritakan kembali apa yang didengar dengan kosakata yang lebih","4-ZAINI",2]
[null,null,"BHS|3.10.=3.10.1. Menceritakan kembali apa yang didengar dengan kosakata yang lebih","5-YUNUS",3]
[null,null,"BHS|3.10.=3.10.1. Menceritakan kembali apa yang didengar dengan kosakata yang lebih","6-RINI",4]
[null,null,"BHS|3.10.=3.10.1. Menceritakan kembali apa yang didengar dengan kosakata yang lebih","7-DITA",1]
[null,null,"BHS|3.10.=3.10.1. Menceritakan kembali apa yang didengar dengan kosakata yang lebih","8-ROMLA",3]
[null,null,"BHS|3.10.=3.10.1. Menceritakan kembali apa yang didengar dengan kosakata yang lebih","9-NINA",2]
[null,null,"BHS|3.10.=3.10.1. Menceritakan kembali apa yang didengar dengan kosakata yang lebih","10-ZAID",1]
[null,null,"BHS|3.10.=3.10.1. Menceritakan kembali apa yang didengar dengan kosakata yang lebih","11-NITA",3]
[null,null,"BHS|3.10.=3.10.1. Menceritakan kembali apa yang didengar dengan kosakata yang lebih","12-BUDI",2]
[null,null,"FISIK|4.4.=4.4.2. Mampu melindungi diri dari percobaan kekerasan, termasuk kekerasan seksual dan bullying (misal dengan berteriak dan/atau berlari)","1-HASAN",3]
[null,null,"FISIK|4.4.=4.4.2. Mampu melindungi diri dari percobaan kekerasan, termasuk kekerasan seksual dan bullying (misal dengan berteriak dan/atau berlari)","2-NURI",4]
[null,null,"FISIK|4.4.=4.4.2. Mampu melindungi diri dari percobaan kekerasan, termasuk kekerasan seksual dan bullying (misal dengan berteriak dan/atau berlari)","3-RIKO",1]
[null,null,"FISIK|4.4.=4.4.2. Mampu melindungi diri dari percobaan kekerasan, termasuk kekerasan seksual dan bullying (misal dengan berteriak dan/atau berlari)","4-ZAINI",3]
[null,null,{"$f":"INDEX(INDIKATOR,TRUNC((ROW(C65)-1)/12)+1)","v":"FISIK|4.4.=4.4.2. Mampu melindungi diri dari percobaan kekerasan, termasuk kekerasan seksual dan bullying (misal dengan berteriak dan/atau berlari)"},{"$f":"INDEX(NAMA,MOD(ROW(C65)-1,12)+1)","v":"5-YUNUS"},{"$f":"INDEX(NILAI,TRUNC((ROW(C65)-1)/12)+1,MATCH(D66,NAMA,0))","v":4}]
[null,null,"FISIK|4.4.=4.4.2. Mampu melindungi diri dari percobaan kekerasan, termasuk kekerasan seksual dan bullying (misal dengan berteriak dan/atau berlari)","6-RINI",1]
[null,null,"FISIK|4.4.=4.4.2. Mampu melindungi diri dari percobaan kekerasan, termasuk kekerasan seksual dan bullying (misal dengan berteriak dan/atau berlari)","7-DITA",3]
[null,null,"FISIK|4.4.=4.4.2. Mampu melindungi diri dari percobaan kekerasan, termasuk kekerasan seksual dan bullying (misal dengan berteriak dan/atau berlari)","8-ROMLA",4]
[null,null,"FISIK|4.4.=4.4.2. Mampu melindungi diri dari percobaan kekerasan, termasuk kekerasan seksual dan bullying (misal dengan berteriak dan/atau berlari)","9-NINA",2]
[null,null,"FISIK|4.4.=4.4.2. Mampu melindungi diri dari percobaan kekerasan, termasuk kekerasan seksual dan bullying (misal dengan berteriak dan/atau berlari)","10-ZAID",3]
[null,null,"FISIK|4.4.=4.4.2. Mampu melindungi diri dari percobaan kekerasan, termasuk kekerasan seksual dan bullying (misal dengan berteriak dan/atau berlari)","11-NITA",4]
[null,null,"FISIK|4.4.=4.4.2. Mampu melindungi diri dari percobaan kekerasan, termasuk kekerasan seksual dan bullying (misal dengan berteriak dan/atau berlari)","12-BUDI",2]

{"sheet":"DATANILAI","index":2,"n_rows":73,"n_cols":3,"rows_kept":73,"cut":false,"hidden":false,"merged":[]}
["INDIKATOR","NAMA","NILAI"]
["NAM|3.1.=3.1.1. Mengucapkan doa-doa pendek, melakukan ibadah sesuai dengan agamanya (misal: doa sebelum memulai dan selesai kegiatan)","1-HASAN",1]
["NAM|3.1.=3.1.1. Mengucapkan doa-doa pendek, melakukan ibadah sesuai dengan agamanya (misal: doa sebelum memulai dan selesai kegiatan)","2-NURI",3]
["NAM|3.1.=3.1.1. Mengucapkan doa-doa pendek, melakukan ibadah sesuai dengan agamanya (misal: doa sebelum memulai dan selesai kegiatan)","3-RIKO",2]
["NAM|3.1.=3.1.1. Mengucapkan doa-doa pendek, melakukan ibadah sesuai dengan agamanya (misal: doa sebelum memulai dan selesai kegiatan)","4-ZAINI",4]
["NAM|3.1.=3.1.1. Mengucapkan doa-doa pendek, melakukan ibadah sesuai dengan agamanya (misal: doa sebelum memulai dan selesai kegiatan)","5-YUNUS",2]
["NAM|3.1.=3.1.1. Mengucapkan doa-doa pendek, melakukan ibadah sesuai dengan agamanya (misal: doa sebelum memulai dan selesai kegiatan)","6-RINI",4]
["NAM|3.1.=3.1.1. Mengucapkan doa-doa pendek, melakukan ibadah sesuai dengan agamanya (misal: doa sebelum memulai dan selesai kegiatan)","7-DITA",1]
["NAM|3.1.=3.1.1. Mengucapkan doa-doa pendek, melakukan ibadah sesuai dengan agamanya (misal: doa sebelum memulai dan selesai kegiatan)","8-ROMLA",3]
["NAM|3.1.=3.1.1. Mengucapkan doa-doa pendek, melakukan ibadah sesuai dengan agamanya (misal: doa sebelum memulai dan selesai kegiatan)","9-NINA",2]
["NAM|3.1.=3.1.1. Mengucapkan doa-doa pendek, melakukan ibadah sesuai dengan agamanya (misal: doa sebelum memulai dan selesai kegiatan)","10-ZAID",4]
["NAM|3.1.=3.1.1. Mengucapkan doa-doa pendek, melakukan ibadah sesuai dengan agamanya (misal: doa sebelum memulai dan selesai kegiatan)","11-NITA",2]
["NAM|3.1.=3.1.1. Mengucapkan doa-doa pendek, melakukan ibadah sesuai dengan agamanya (misal: doa sebelum memulai dan selesai kegiatan)","12-BUDI",3]
["FISIK|3.3.=3.3.1. Melakukan berbagai gerakan terkoordinasi secara terkontrol, seimbang, dan lincah","1-HASAN",4]
["FISIK|3.3.=3.3.1. Melakukan berbagai gerakan terkoordinasi secara terkontrol, seimbang, dan lincah","2-NURI",2]
["FISIK|3.3.=3.3.1. Melakukan berbagai gerakan terkoordinasi secara terkontrol, seimbang, dan lincah","3-RIKO",4]
["FISIK|3.3.=3.3.1. Melakukan berbagai gerakan terkoordinasi secara terkontrol, seimbang, dan lincah","4-ZAINI",3]
["FISIK|3.3.=3.3.1. Melakukan berbagai gerakan terkoordinasi secara terkontrol, seimbang, dan lincah","5-YUNUS",4]
["FISIK|3.3.=3.3.1. Melakukan berbagai gerakan terkoordinasi secara terkontrol, seimbang, dan lincah","6-RINI",1]
["FISIK|3.3.=3.3.1. Melakukan berbagai gerakan terkoordinasi secara terkontrol, seimbang, dan lincah","7-DITA",3]
["FISIK|3.3.=3.3.1. Melakukan berbagai gerakan terkoordinasi secara terkontrol, seimbang, dan lincah","8-ROMLA",4]
["FISIK|3.3.=3.3.1. Melakukan berbagai gerakan terkoordinasi secara terkontrol, seimbang, dan lincah","9-NINA",1]
["FISIK|3.3.=3.3.1. Melakukan berbagai gerakan terkoordinasi secara terkontrol, seimbang, dan lincah","10-ZAID",2]
["FISIK|3.3.=3.3.1. Melakukan berbagai gerakan terkoordinasi secara terkontrol, seimbang, dan lincah","11-NITA",1]
["FISIK|3.3.=3.3.1. Melakukan berbagai gerakan terkoordinasi secara terkontrol, seimbang, dan lincah","12-BUDI",4]
["KOG|3.5.=3.5.1. Mampu memecahkan sendiri masalah sederhana yang dihadapi","1-HASAN",3]
["KOG|3.5.=3.5.1. Mampu memecahkan sendiri masalah sederhana yang dihadapi","2-NURI",4]
["KOG|3.5.=3.5.1. Mampu memecahkan sendiri masalah sederhana yang dihadapi","3-RIKO",1]
["KOG|3.5.=3.5.1. Mampu memecahkan sendiri masalah sederhana yang dihadapi","4-ZAINI",2]
["KOG|3.5.=3.5.1. Mampu memecahkan sendiri masalah sederhana yang dihadapi","5-YUNUS",1]
["KOG|3.5.=3.5.1. Mampu memecahkan sendiri masalah sederhana yang dihadapi","6-RINI",3]
["KOG|3.5.=3.5.1. Mampu memecahkan sendiri masalah sederhana yang dihadapi","7-DITA",2]
["KOG|3.5.=3.5.1. Mampu memecahkan sendiri masalah sederhana yang dihadapi","8-ROMLA",4]
["KOG|3.5.=3.5.1. Mampu memecahkan sendiri masalah sederhana yang dihadapi","9-NINA",3]
["KOG|3.5.=3.5.1. Mampu memecahkan sendiri masalah sederhana yang dihadapi","10-ZAID",4]
["KOG|3.5.=3.5.1. Mampu memecahkan sendiri masalah sederhana yang dihadapi","11-NITA",1]
["KOG|3.5.=3.5.1. Mampu memecahkan sendiri masalah sederhana yang dihadapi","12-BUDI",3]
["KOG|3.5.=3.5.2. Menyelesaikan tugas meskipun menghadapi kesulitan","1-HASAN",2]
["KOG|3.5.=3.5.2. Menyelesaikan tugas meskipun menghadapi kesulitan","2-NURI",1]
["KOG|3.5.=3.5.2. Menyelesaikan tugas meskipun menghadapi kesulitan","3-RIKO",3]
["KOG|3.5.=3.5.2. Menyelesaikan tugas meskipun menghadapi kesulitan","4-ZAINI",2]
["KOG|3.5.=3.5.2. Menyelesaikan tugas meskipun menghadapi kesulitan","5-YUNUS",1]
["KOG|3.5.=3.5.2. Menyelesaikan tugas meskipun menghadapi kesulitan","6-RINI",3]
["KOG|3.5.=3.5.2. Menyelesaikan tugas meskipun menghadapi kesulitan","7-DITA",4]
["KOG|3.5.=3.5.2. Menyelesaikan tugas meskipun menghadapi kesulitan","8-ROMLA",1]
["KOG|3.5.=3.5.2. Menyelesaikan tugas meskipun menghadapi kesulitan","9-NINA",2]
["KOG|3.5.=3.5.2. Menyelesaikan tugas meskipun menghadapi kesulitan","10-ZAID",1]
["KOG|3.5.=3.5.2. Menyelesaikan tugas meskipun menghadapi kesulitan","11-NITA",3]
["KOG|3.5.=3.5.2. Menyelesaikan tugas meskipun menghadapi kesulitan","12-BUDI",1]
["BHS|3.10.=3.10.1. Menceritakan kembali apa yang didengar dengan kosakata yang lebih","1-HASAN",2]
["BHS|3.10.=3.10.1. Menceritakan kembali apa yang didengar dengan kosakata yang lebih","2-NURI",3]
["BHS|3.10.=3.10.1. Menceritakan kembali apa yang didengar dengan kosakata yang lebih","3-RIKO",4]
["BHS|3.10.=3.10.1. Menceritakan kembali apa yang didengar dengan kosakata yang lebih","4-ZAINI",2]
["BHS|3.10.=3.10.1. Menceritakan kembali apa yang didengar dengan kosakata yang lebih","5-YUNUS",3]
["BHS|3.10.=3.10.1. Menceritakan kembali apa yang didengar dengan kosakata yang lebih","6-RINI",4]
["BHS|3.10.=3.10.1. Menceritakan kembali apa yang didengar dengan kosakata yang lebih","7-DITA",1]
["BHS|3.10.=3.10.1. Menceritakan kembali apa yang didengar dengan kosakata yang lebih","8-ROMLA",3]
["BHS|3.10.=3.10.1. Menceritakan kembali apa yang didengar dengan kosakata yang lebih","9-NINA",2]
["BHS|3.10.=3.10.1. Menceritakan kembali apa yang didengar dengan kosakata yang lebih","10-ZAID",1]
["BHS|3.10.=3.10.1. Menceritakan kembali apa yang didengar dengan kosakata yang lebih","11-NITA",3]
["BHS|3.10.=3.10.1. Menceritakan kembali apa yang didengar dengan kosakata yang lebih","12-BUDI",2]
["FISIK|4.4.=4.4.2. Mampu melindungi diri dari percobaan kekerasan, termasuk kekerasan seksual dan bullying (misal dengan berteriak dan/atau berlari)","1-HASAN",3]
["FISIK|4.4.=4.4.2. Mampu melindungi diri dari percobaan kekerasan, termasuk kekerasan seksual dan bullying (misal dengan berteriak dan/atau berlari)","2-NURI",4]
["FISIK|4.4.=4.4.2. Mampu melindungi diri dari percobaan kekerasan, termasuk kekerasan seksual dan bullying (misal dengan berteriak dan/atau berlari)","3-RIKO",1]
["FISIK|4.4.=4.4.2. Mampu melindungi diri dari percobaan kekerasan, termasuk kekerasan seksual dan bullying (misal dengan berteriak dan/atau berlari)","4-ZAINI",3]
["FISIK|4.4.=4.4.2. Mampu melindungi diri dari percobaan kekerasan, termasuk kekerasan seksual dan bullying (misal dengan berteriak dan/atau berlari)","5-YUNUS",4]
["FISIK|4.4.=4.4.2. Mampu melindungi diri dari percobaan kekerasan, termasuk kekerasan seksual dan bullying (misal dengan berteriak dan/atau berlari)","6-RINI",1]
["FISIK|4.4.=4.4.2. Mampu melindungi diri dari percobaan kekerasan, termasuk kekerasan seksual dan bullying (misal dengan berteriak dan/atau berlari)","7-DITA",3]
["FISIK|4.4.=4.4.2. Mampu melindungi diri dari percobaan kekerasan, termasuk kekerasan seksual dan bullying (misal dengan berteriak dan/atau berlari)","8-ROMLA",4]
["FISIK|4.4.=4.4.2. Mampu melindungi diri dari percobaan kekerasan, termasuk kekerasan seksual dan bullying (misal dengan berteriak dan/atau berlari)","9-NINA",2]
["FISIK|4.4.=4.4.2. Mampu melindungi diri dari percobaan kekerasan, termasuk kekerasan seksual dan bullying (misal dengan berteriak dan/atau berlari)","10-ZAID",3]
["FISIK|4.4.=4.4.2. Mampu melindungi diri dari percobaan kekerasan, termasuk kekerasan seksual dan bullying (misal dengan berteriak dan/atau berlari)","11-NITA",4]
["FISIK|4.4.=4.4.2. Mampu melindungi diri dari percobaan kekerasan, termasuk kekerasan seksual dan bullying (misal dengan berteriak dan/atau berlari)","12-BUDI",2]